bitfinex-derivatives/quotes_SOLF0:USTF0_20250421
["timestamp","ask_amount","ask_price","bid_price","bid_amount"]
[1745233198486,32.9988,140.08,140.05,7.1399]
[1745233198786,0.05172308,140.07,140.05,0.04784218]
[1745233199084,0.05172308,140.07,140.05,7.18794218]
[1745233200285,0.05172308,140.07,140.05,0.04784218]
[1745233200782,0.05172308,140.07,140.06,6.22737545]
[1745233201086,0.05172308,140.07,140.06,13.36697545]
[1745233201288,25.86,140.11,140.06,6.22737545]
[1745233201484,25.86,140.11,140.08,6.22737545]
[1745233201680,25.86,140.11,140.08,7.1383]
[1745233202086,32.9974,140.11,140.08,7.1383]
[1745233202385,6.22737545,140.09,140.03,6.22737545]
[1745233202588,13.36747545,140.05,140.01,4.001]
[1745233202787,32.08737545,140.05,140.01,4.001]
[1745233202987,25.86,140.05,140.03,6.22737545]
[1745233203188,32.9987,140.08,140.03,6.22737545]
[1745233203388,32.9987,140.08,140.02,1.8729]
[1745233203588,25.86,140.08,140.05,6.22737545]
[1745233203787,0.04566601,140.06,140.05,6.22737545]
[1745233203989,6.27304146,140.06,140.04,0.04513506]
[1745233204185,13.41284146,140.06,140.04,0.04513506]
[1745233204389,7.18546601,140.06,140.04,0.04513506]
[1745233204685,0.04566601,140.06,140.04,0.04513506]
[1745233205188,0.04566601,140.06,140.05,7.58357328]
[1745233205691,0.04566601,140.06,140.05,7.58288333]
[1745233206389,0.04566601,140.06,140.04,0.04513506]
[1745233207491,0.04566601,140.06,140.04,7.18563506]
[1745233208892,0.04566601,140.06,140.04,0.04513506]
[1745233209493,7.18536601,140.06,140.04,0.04513506]
[1745233212893,7.1401,140.05,140.04,0.04513506]
[1745233213194,0.04566601,140.06,140.04,0.04513506]
[1745233213495,7.18566601,140.06,140.04,0.04513506]
[1745233213793,6.22737545,140.05,140.04,0.04513506]
[1745233216595,13.36747545,140.05,140.04,0.04513506]
[1745233216997,6.22737545,140.05,139.97,5.8026]
[1745233217296,7.1416,140.02,139.97,12.02997545]
[1745233217590,6.22737545,139.99,139.92,952.3]
[1745233217793,6.22737545,139.99,139.94,6.22737545]
[1745233217988,6.22737545,139.99,139.97,7.1438]
[1745233218195,0.05465785,139.98,139.95,0.05354053]
[1745233218495,6.22737545,139.97,139.95,7.19834053]
[1745233218690,0.05465785,139.98,139.95,0.05354053]
[1745233219292,0.05465785,139.98,139.96,7.1447]
[1745233220300,0.05465785,139.98,139.95,7.19854053]
[1745233221203,0.05465785,139.98,139.96,7.1447]
[1745233222602,0.05465785,139.98,139.97,7.1442]
[1745233223100,25.86,140.0,139.99,7.1432]
[1745233223402,25.86,140.0,139.98,6.22737545]
[1745233224099,25.86,140.0,139.99,7.1432]
[1745233224305,25.91386033,140.0,139.99,7.1432]
[1745233226504,0.05386033,140.0,139.99,7.1432]
[1745233230311,25.86,140.03,140.02,7.1416]
[1745233230508,25.86,140.03,140.02,13.36897545]
[1745233233206,25.86,140.03,140.02,7.1416]
[1745233234517,25.86,140.03,140.01,7.18987981]
[1745233235215,25.86,140.03,140.01,0.04797981]
[1745233235816,33.0015,140.03,140.01,0.04797981]
[1745233236516,25.86,140.03,140.01,7.19007981]
[1745233236716,6.22737545,140.02,140.01,0.04797981]
[1745233237516,13.36897545,140.02,140.01,0.04797981]
[1745233237909,6.22737545,140.02,139.96,367.22737545]
[1745233238215,7.1425,140.01,139.98,7.1434]
[1745233238618,13.37037545,140.0,139.97,7.1441]
[1745233238919,25.86,139.99,139.97,7.1441]
[1745233239116,25.86,139.99,139.97,7.19605533]
[1745233240616,25.86,139.99,139.98,7.1437]
[1745233245022,0.05468547,140.0,139.99,7.1432]
[1745233246823,0.05468547,140.0,139.98,13.37087545]
[1745233247424,7.19738547,140.0,139.97,7.19585533]
[1745233249123,7.1432,139.99,139.97,7.19585533]
[1745233249424,6.22737545,139.99,139.97,0.05195533]
[1745233249624,25.86,139.98,139.97,0.05195533]
[1745233249826,33.0037,139.98,139.97,0.05195533]
[1745233255724,25.86,139.98,139.92,7.1465]
[1745233255926,6.22737545,139.96,139.9,6.22737545]
[1745233256627,6.22737545,139.96,139.92,6.22737545]
[1745233256826,0.05474121,139.94,139.92,6.27726228]
[1745233257127,0.05474121,139.94,139.92,13.42376228]
[1745233257621,0.05474121,139.94,139.93,7.1462]
[1745233263236,0.05474121,139.94,139.92,0.04988683]
[1745233263425,25.91474121,139.94,139.92,0.04988683]
[1745233264231,33.06054121,139.94,139.92,0.04988683]
[1745233264425,25.91474121,139.94,139.92,0.04988683]
[1745233264628,25.91474121,139.94,139.93,7.1462]
[1745233265130,25.91474121,139.94,139.92,7.19638683]
[1745233266231,25.91474121,139.94,139.93,7.1462]
[1745233267431,25.91474121,139.94,139.92,7.19638683]
[1745233267930,25.91474121,139.94,139.92,0.04988683]
[1745233268931,6.22737545,139.93,139.92,0.04988683]
[1745233269432,13.37357545,139.93,139.92,0.04988683]
[1745233271534,6.22737545,139.93,139.86,6.22737545]
[1745233271731,6.22737545,139.91,139.86,6.22737545]
[1745233271932,25.86,139.9,139.87,7.149]
[1745233272435,25.86,139.9,139.88,7.1485]
[1745233272627,25.90552183,139.9,139.87,0.04754803]
[1745233273135,25.90552183,139.9,139.89,7.1483]
[1745233273730,25.90552183,139.9,139.88,7.1486]
[1745233274936,33.05342183,139.9,139.88,7.1486]
[1745233275125,33.05342183,139.9,139.87,0.04754803]
[1745233275938,33.05342183,139.9,139.87,7.19644803]
[1745233276234,33.05342183,139.9,139.87,0.04754803]
[1745233277334,33.05342183,139.9,139.88,7.1487]
[1745233277535,39.28079728,139.9,139.88,7.1487]
[1745233278129,25.90552183,139.9,139.88,7.1487]
[1745233278836,25.90552183,139.9,139.89,7.1483]
[1745233280734,25.90552183,139.9,139.88,7.1485]
[1745233281636,25.90552183,139.9,139.89,7.1483]
[1745233283435,0.04552183,139.9,139.89,7.1483]
[1745233283643,25.86,139.93,139.92,7.1467]
[1745233283934,25.86,139.93,139.92,13.37407545]
[1745233284137,598.945,139.96,139.93,7.1457]
[1745233284838,598.99457134,139.96,139.93,7.19102081]
[1745233288339,598.99457134,139.96,139.94,7.1457]
[1745233288839,598.99457134,139.96,139.93,7.19132081]
[1745233291041,7.1453,139.95,139.93,7.19132081]
[1745233291641,7.1453,139.95,139.93,0.04532081]
[1745233292245,7.1457,139.94,139.93,0.04532081]
[1745233294845,13.37307545,139.94,139.93,0.04532081]
[1745233297950,6.22737545,139.94,139.93,0.04532081]
[1745233298249,598.07694679,139.96,139.93,0.04532081]
[1745233298743,0.04957134,139.96,139.93,6.27269626]
[1745233298949,0.04957134,139.96,139.95,6.22737545]
[1745233299249,0.04957134,139.96,139.95,13.37257545]
[1745233304768,25.84,140.01,139.99,7.143]
[1745233305067,32.9823,140.01,139.98,6.22737545]
[1745233305364,32.9823,140.01,139.98,13.37087545]
[1745233305867,33.0339258,140.01,139.98,13.42239642]
[1745233308071,7.1427,140.0,139.98,13.42239642]
[1745233308267,7.1427,140.0,139.98,6.27889642]
[1745233308467,25.8916258,140.01,139.98,6.27889642]
[1745233308868,33.0340258,140.01,139.98,13.42229642]
[1745233309173,33.0340258,140.01,139.98,6.27889642]
[1745233309864,33.0340258,140.01,139.98,13.42239642]
[1745233310873,7.1427,140.0,139.98,13.42239642]
[1745233311169,25.8916258,140.01,139.98,0.05152097]
[1745233311370,7.1431,140.0,139.98,0.05152097]
[1745233312370,7.1432,139.99,139.98,0.05152097]
[1745233314070,13.37027545,140.0,139.98,0.05152097]
[1745233314369,7.1432,139.99,139.98,0.05152097]
[1745233314871,6.22737545,140.0,139.94,6.22737545]
[1745233315072,6.22737545,139.98,139.94,6.22737545]
[1745233315273,25.84,139.97,139.94,6.22737545]
[1745233315474,32.9844,139.97,139.94,13.37307545]
[1745233315771,32.9844,139.97,139.94,7.1457]
[1745233315976,33.03006471,139.97,139.94,7.19974226]
[1745233318479,7.1447,139.96,139.94,0.05404226]
[1745233320181,32.11304016,139.97,139.94,0.05404226]
[1745233321485,7.1451,139.96,139.94,0.05404226]
[1745233322084,7.1452,139.95,139.94,0.05404226]
[1745233323486,7.1449,139.96,139.94,0.05404226]
[1745233324482,7.1452,139.95,139.94,0.05404226]
[1745233324687,6.22737545,139.95,139.89,1.9577]
[1745233324984,6.22737545,139.95,139.89,8.18507545]
[1745233325786,0.04792686,139.93,139.91,7.19981416]
[1745233326188,0.04792686,139.93,139.91,0.05261416]
[1745233326388,0.04792686,139.93,139.91,7.19961416]
[1745233327192,0.04792686,139.93,139.92,7.1467]
[1745233327685,0.04792686,139.93,139.91,0.05261416]
[1745233327887,0.04792686,139.93,139.91,7.19961416]
[1745233329091,25.88792686,139.93,139.91,0.05261416]
[1745233329694,7.1467,139.92,139.91,0.05261416]
[1745233333195,39.26180231,139.93,139.91,0.05261416]
[1745233336196,7.1467,139.92,139.91,0.05261416]
[1745233338196,39.26180231,139.93,139.91,0.05261416]
[1745233339497,7.1467,139.92,139.91,0.05261416]
[1745233340294,7.1479,139.9,139.87,6.22737545]
[1745233340898,7.1479,139.9,139.88,7.1488]
[1745233341294,7.1475,139.91,139.88,7.1488]
[1745233341500,0.04765365,139.9,139.88,7.203496]
[1745233343102,0.04765365,139.9,139.89,7.1483]
[1745233343399,0.04765365,139.9,139.89,13.37567545]
[1745233343994,25.84,139.93,139.91,6.22737545]
[1745233344900,25.84,139.93,139.92,7.1467]
[1745233345101,25.88597335,139.93,139.92,7.1467]
[1745233347200,0.04597335,139.93,139.92,7.1467]
[1745233355509,0.04597335,139.93,139.91,7.19298767]
[1745233355709,0.04597335,139.93,139.91,13.42036312]
[1745233356806,0.04597335,139.93,139.91,6.27336312]
[1745233356807,7.19227335,139.93,139.91,6.27336312]
[1745233357110,32.06737545,139.92,139.8,8.42845186]
[1745233357310,13.37697545,139.87,139.82,6.22737545]
[1745233357516,13.37697545,139.87,139.83,7.151]
[1745233358016,7.1498,139.86,139.82,7.1517]
[1745233358216,6.22737545,139.87,139.81,6.22737545]
[1745233358517,6.27595108,139.85,139.83,0.04781562]
[1745233359216,13.42655108,139.85,139.83,0.04781562]
[1745233359413,7.19917563,139.85,139.83,0.04781562]
[1745233359614,0.04857563,139.85,139.83,0.04781562]
[1745233359921,0.04857563,139.85,139.83,6.27519107]
[1745233361117,0.04857563,139.85,139.84,7.1508]
[1745233363519,0.04857563,139.85,139.83,13.42629107]
[1745233363723,0.04857563,139.85,139.83,7.19891562]
[1745233365122,6.27595108,139.85,139.83,0.04781562]
[1745233365523,7.1508,139.84,139.83,0.04781562]
[1745233367823,32.9908,139.84,139.83,0.04781562]
[1745233369316,25.84,139.84,139.83,0.04781562]
[1745233369924,25.84,139.84,139.83,7.19911562]
[1745233371723,0.04857563,139.85,139.84,7.1508]
[1745233375631,0.04857563,139.85,139.83,13.42629107]
[1745233375929,0.04857563,139.85,139.83,6.27519107]
[1745233376931,0.04857563,139.85,139.84,7.1508]
[1745233384433,32.06737545,139.89,139.87,7.149]
[1745233385533,32.11367483,139.89,139.87,7.19608594]
[1745233386235,39.26207483,139.89,139.87,7.19608594]
[1745233388437,7.1488,139.88,139.87,0.04708594]
[1745233391847,32.11367483,139.89,139.83,7.1512]
[1745233392043,6.22737545,139.86,139.83,7.1512]
[1745233392944,6.27758405,139.86,139.83,7.20198813]
[1745233393246,7.1504,139.85,139.83,7.20198813]
[1745233393846,7.1504,139.85,139.83,0.05078813]
[1745233394042,7.1508,139.84,139.83,0.05078813]
[1745233394443,13.37817545,139.84,139.83,0.05078813]
[1745233395547,32.9905,139.85,139.83,0.05078813]
[1745233396951,32.9905,139.85,139.83,7.20208813]
[1745233397147,25.84,139.85,139.83,0.05078813]
[1745233397451,0.0502086,139.86,139.83,6.27816358]
[1745233398254,7.2001086,139.86,139.84,7.1508]
[1745233399655,7.1505,139.85,139.83,13.42926358]
[1745233399952,0.0502086,139.86,139.83,13.42926358]
[1745233400353,7.2003086,139.86,139.83,13.42926358]
[1745233400750,0.0502086,139.86,139.83,13.42926358]
[1745233401455,7.2002086,139.86,139.83,13.42926358]
[1745233402553,7.1504,139.85,139.83,13.42926358]
[1745233403156,7.2003086,139.86,139.83,13.42926358]
[1745233404359,7.2003086,139.86,139.84,7.1505]
[1745233404360,0.0502086,139.86,139.84,7.1505]
[1745233404657,0.0502086,139.86,139.83,6.27816358]
[1745233405159,0.0502086,139.86,139.84,7.1504]
[1745233405558,0.0502086,139.86,139.83,6.27816358]
[1745233405759,0.0502086,139.86,139.85,7.1503]
[1745233406458,0.0502086,139.86,139.84,7.1506]
[1745233407459,0.0502086,139.86,139.85,7.1503]
[1745233408563,6.27758405,139.86,139.83,0.05078813]
[1745233408859,7.1506,139.85,139.83,0.05078813]
[1745233409959,7.1508,139.84,139.83,0.05078813]
[1745233412255,39.21817545,139.84,139.83,0.05078813]
[1745233412461,32.06737545,139.84,139.79,361.0]
[1745233412960,7.1516,139.83,139.79,7.153]
[1745233413161,32.06737545,139.84,139.79,7.153]
[1745233413664,7.20327891,139.83,139.8,0.04992758]
[1745233413862,7.20327891,139.83,139.8,7.20272758]
[1745233417863,0.05177891,139.83,139.8,6.27730303]
[1745233418354,0.05177891,139.83,139.82,13.37927545]
[1745233419761,0.05177891,139.83,139.81,7.1521]
[1745233419965,0.05177891,139.83,139.8,6.27730303]
[1745233421267,0.05177891,139.83,139.81,7.152]
[1745233421564,0.05177891,139.83,139.8,6.27730303]
[1745233422267,0.05177891,139.83,139.81,7.1521]
[1745233422966,7.20347891,139.83,139.8,13.42990303]
[1745233423969,7.20347891,139.83,139.81,7.1522]
[1745233424167,0.05177891,139.83,139.8,6.27730303]
[1745233424666,0.05177891,139.83,139.82,7.1519]
[1745233429572,0.05177891,139.83,139.82,13.37927545]
[1745233432575,0.05177891,139.83,139.82,7.1519]
[1745233434377,7.20307891,139.83,139.81,7.1522]
[1745233440985,7.1521,139.82,139.8,13.42990303]
[1745233441287,0.05177891,139.83,139.8,0.04992758]
[1745233441485,6.22737545,139.82,139.8,0.04992758]
[1745233442087,7.1524,139.81,139.8,0.04992758]
[1745233442284,6.22737545,139.82,139.8,0.04992758]
[1745233442683,13.37947545,139.82,139.8,7.20252758]
[1745233442985,13.37947545,139.82,139.8,0.04992758]
[1745233444182,0.05177891,139.83,139.8,0.04992758]
[1745233444390,0.05177891,139.83,139.8,6.27730303]
[1745233445388,0.05177891,139.83,139.81,7.1519]
[1745233445684,0.05177891,139.83,139.8,6.27730303]
[1745233445890,0.05177891,139.83,139.82,7.1519]
[1745233446688,0.05177891,139.83,139.81,7.1521]
[1745233447488,0.05177891,139.83,139.82,7.1519]
[1745233448189,0.05177891,139.83,139.81,7.1522]
[1745233449991,0.05177891,139.83,139.82,7.1519]
[1745233452194,0.05177891,139.83,139.81,7.1521]
[1745233452494,7.20337891,139.83,139.81,7.1521]
[1745233455294,7.20337891,139.83,139.8,13.42990303]
[1745233455499,7.1519,139.82,139.8,7.20252758]
[1745233458797,7.20337891,139.83,139.8,7.20252758]
[1745233459000,0.05177891,139.83,139.81,7.1523]
[1745233459404,7.20327891,139.83,139.81,7.1523]
[1745233461204,7.1522,139.82,139.8,0.04992758]
[1745233462000,7.1524,139.81,139.8,0.04992758]
[1745233463807,13.37947545,139.82,139.8,0.04992758]
[1745233465004,7.1524,139.81,139.8,0.04992758]
[1745233467310,7.1536,139.79,139.75,6.22737545]
[1745233467502,7.1536,139.79,139.74,386.82]
[1745233467707,7.1539,139.78,139.76,7.1546]
[1745233468509,7.2067256,139.78,139.76,7.20620506]
[1745233468711,7.1544,139.77,139.76,0.05160506]
[1745233469410,7.2070256,139.78,139.76,0.05160506]
[1745233470609,7.2070256,139.78,139.76,7.20650506]
[1745233471112,0.0528256,139.78,139.76,7.20650506]
[1745233472811,0.0528256,139.78,139.77,7.1544]
[1745233479320,25.84,139.83,139.76,6.27898051]
[1745233479521,25.84,139.83,139.79,6.22737545]
[1745233480514,0.04606881,139.82,139.8,0.05048475]
[1745233481221,0.04606881,139.82,139.81,7.1524]
[1745233484520,0.04606881,139.82,139.81,13.37977545]
[1745233486524,0.04606881,139.82,139.81,7.1524]
[1745233490721,25.22670073,139.83,139.82,7.1519]
[1745233490922,25.22670073,139.83,139.82,13.37927545]
[1745233498427,25.22670073,139.83,139.81,7.1522]
[1745233499428,32.37820073,139.83,139.8,13.4304602]
[1745233500229,7.1521,139.82,139.8,0.05048475]
[1745233500429,31.45407618,139.83,139.8,0.05048475]
[1745233500826,7.1524,139.81,139.8,0.05048475]
[1745233501525,13.37977545,139.81,139.8,0.05048475]
[1745233502225,7.1542,139.78,139.75,361.0]
[1745233502528,32.9742,139.78,139.74,6.22737545]
[1745233502729,32.9742,139.78,139.75,7.1551]
[1745233503328,33.02828958,139.78,139.76,7.1549]
[1745233503930,33.02828958,139.78,139.75,7.20817709]
[1745233504734,25.87408958,139.78,139.76,7.1549]
[1745233505034,25.87408958,139.78,139.75,0.05297709]
[1745233505333,25.87408958,139.78,139.77,7.1544]
[1745233507929,25.87408958,139.78,139.76,6.22737545]
[1745233508139,25.87408958,139.78,139.76,13.38207545]
[1745233509338,25.87408958,139.78,139.75,7.20827709]
[1745233509538,25.87408958,139.78,139.75,0.05297709]
[1745233510341,6.22737545,139.77,139.75,0.05297709]
[1745233511239,7.1549,139.76,139.75,0.05297709]
[1745233513140,8.16977545,139.77,139.7,361.0]
[1745233513340,6.22737545,139.74,139.68,6.22737545]
[1745233513639,32.9768,139.73,139.7,7.1577]
[1745233514342,7.157,139.72,139.7,7.20765583]
[1745233514937,33.02747533,139.73,139.7,7.20765583]
[1745233515244,25.87077533,139.73,139.7,6.27733128]
[1745233515844,0.00029058,139.73,139.72,13.38437545]
[1745233516741,25.82,139.77,139.75,7.155]
[1745233516943,32.9747,139.77,139.74,6.22737545]
[1745233517142,32.9747,139.77,139.73,6.22737545]
[1745233517437,32.9747,139.77,139.74,7.1555]
[1745233517840,33.02942447,139.77,139.74,7.20947398]
[1745233520946,7.1551,139.76,139.74,7.20947398]
[1745233523552,25.87472447,139.77,139.74,0.05397398]
[1745233523850,32.10209992,139.77,139.74,0.05397398]
[1745233524850,7.1549,139.76,139.74,0.05397398]
[1745233526450,7.1554,139.75,139.74,0.05397398]
[1745233527050,13.38277545,139.75,139.74,0.05397398]
[1745233527456,6.22737545,139.75,139.7,6.22737545]
[1745233527755,6.22737545,139.73,139.69,7.1583]
[1745233527955,7.1573,139.72,139.69,7.1583]
[1745233528557,7.2115441,139.72,139.69,7.21142594]
[1745233529058,7.1579,139.71,139.69,0.05312594]
[1745233529355,6.22737545,139.71,139.69,0.05312594]
[1745233529656,7.158,139.7,139.69,0.05312594]
[1745233531756,13.38517545,139.71,139.69,0.05312594]
[1745233532959,7.158,139.7,139.69,0.05312594]
[1745233534260,13.38507545,139.71,139.69,0.05312594]
[1745233534760,7.158,139.7,139.69,0.05312594]
[1745233541465,0.0542441,139.72,139.69,0.05312594]
[1745233542666,0.0542441,139.72,139.7,6.22737545]
[1745233542965,0.0542441,139.72,139.71,7.1575]
[1745233545161,0.00027012,139.72,139.71,7.1575]
[1745233546266,25.82,139.77,139.74,7.1555]
[1745233546668,25.82,139.77,139.73,6.22737545]
[1745233546864,25.82,139.77,139.75,6.22737545]
[1745233547166,25.82,139.77,139.76,7.1549]
[1745233549270,0.04649192,139.78,139.77,7.1544]
[1745233556970,0.04649192,139.78,139.76,6.22737545]
[1745233556971,0.04649192,139.78,139.76,7.1548]
[1745233557571,0.04649192,139.78,139.77,7.1544]
[1745233557771,0.04649192,139.78,139.77,13.38177545]
[1745233558472,0.04649192,139.78,139.77,6.22737545]
[1745233558872,0.04649192,139.78,139.75,6.27541835]
[1745233559574,7.20059192,139.78,139.75,13.43061835]
[1745233562180,7.1545,139.77,139.75,13.43061835]
[1745233562372,0.04649192,139.78,139.75,6.27541835]
[1745233562579,6.27386737,139.78,139.75,0.0480429]
[1745233562980,7.1549,139.76,139.75,0.0480429]
[1745233564281,6.27386737,139.78,139.75,0.0480429]
[1745233564681,7.1545,139.77,139.75,7.2032429]
[1745233564884,7.1545,139.77,139.75,0.0480429]
[1745233565985,6.27386737,139.78,139.75,0.0480429]
[1745233566485,0.04649192,139.78,139.75,0.0480429]
[1745233567184,0.04649192,139.78,139.75,6.27541835]
[1745233567985,7.20069192,139.78,139.75,13.43061835]
[1745233569584,7.20069192,139.78,139.76,7.1549]
[1745233569887,7.20069192,139.78,139.75,6.27541835]
[1745233570185,7.20069192,139.78,139.75,13.43051835]
[1745233570884,7.20069192,139.78,139.75,7.2031429]
[1745233571085,7.20069192,139.78,139.77,7.1544]
[1745233571086,0.04649192,139.78,139.77,7.1544]
[1745233571286,0.04649192,139.78,139.76,6.22737545]
[1745233571585,0.04649192,139.78,139.75,7.2031429]
[1745233572487,0.04649192,139.78,139.76,6.22737545]
[1745233573181,0.04649192,139.78,139.77,7.1544]
[1745233573988,0.04649192,139.78,139.76,13.38207545]
[1745233574285,0.04649192,139.78,139.75,0.0480429]
[1745233574687,0.04649192,139.78,139.75,6.27541835]
[1745233575187,0.04649192,139.78,139.77,7.1544]
[1745233575383,0.04649192,139.78,139.77,13.38177545]
[1745233576591,25.8,139.82,139.81,7.1524]
[1745233577085,1.8987,139.86,139.82,7.1518]
[1745233577286,25.8,139.85,139.82,7.1518]
[1745233577586,32.9507,139.85,139.82,7.1518]
[1745233577783,33.00139151,139.85,139.82,7.2025429]
[1745233577982,25.85069151,139.85,139.82,0.0507429]
[1745233578188,6.22737545,139.84,139.82,0.0507429]
[1745233578487,7.1513,139.83,139.82,0.0507429]
[1745233579988,13.37837545,139.84,139.82,0.0507429]
[1745233580489,7.151,139.84,139.82,7.2024429]
[1745233582091,33.00129151,139.85,139.82,7.2024429]
[1745233583590,7.151,139.84,139.82,7.2024429]
[1745233583790,25.85069151,139.85,139.83,7.1512]
[1745233583991,25.85069151,139.85,139.82,0.0507429]
[1745233584492,7.1509,139.84,139.82,7.2023429]
[1745233585493,33.00119151,139.85,139.82,7.2023429]
[1745233585688,25.85069151,139.85,139.82,7.2023429]
[1745233587303,7.1511,139.84,139.82,7.2023429]
[1745233588004,33.00129151,139.85,139.83,7.1513]
[1745233588197,33.00129151,139.85,139.82,0.0507429]
[1745233588603,33.00129151,139.85,139.82,7.2023429]
[1745233588904,0.05069151,139.85,139.84,6.22737545]
[1745233590303,0.05069151,139.85,139.84,13.37817545]
[1745233594910,25.78,139.91,139.87,7.149]
[1745233596015,7.19432876,139.9,139.88,0.05368612]
[1745233597612,7.1483,139.89,139.88,0.05368612]
[1745233599015,7.1497,139.87,139.82,1.9134]
[1745233599211,7.1497,139.87,139.83,6.22737545]
[1745233599411,7.1497,139.87,139.84,7.1504]
[1745233599812,7.1497,139.87,139.83,6.22737545]
[1745233600012,7.1497,139.87,139.84,7.1506]
[1745233600319,0.04967857,139.86,139.84,7.20030303]
[1745233600920,0.04967857,139.86,139.85,7.1503]
[1745233601614,0.04967857,139.86,139.85,13.37767545]
[1745233603520,0.04967857,139.86,139.85,7.1503]
[1745233606024,0.04967857,139.86,139.85,13.37767545]
[1745233607226,0.04967857,139.86,139.85,7.1503]
[1745233610526,0.04967857,139.86,139.84,0.04970303]
[1745233610925,7.19977857,139.86,139.84,0.04970303]
[1745233611426,7.1503,139.85,139.84,0.04970303]
[1745233614929,6.27705402,139.86,139.81,7.1522]
[1745233615131,6.27705402,139.86,139.8,367.22737545]
[1745233615531,7.1511,139.84,139.81,7.152]
[1745233616231,7.1511,139.84,139.81,7.20471764]
[1745233617634,7.1511,139.84,139.82,7.1519]
[1745233618937,7.1513,139.83,139.81,7.20481764]
[1745233619634,7.1511,139.84,139.81,7.20481764]
[1745233620335,7.1505,139.85,139.81,0.05271764]
[1745233620542,6.27705402,139.86,139.81,0.05271764]
[1745233620842,6.27705402,139.86,139.83,7.1511]
[1745233621142,7.1504,139.85,139.83,7.1511]
[1745233621441,6.27705402,139.86,139.83,7.1511]
[1745233621641,0.04967857,139.86,139.84,6.22737545]
[1745233622241,0.04967857,139.86,139.85,7.1503]
[1745233628349,7.19957857,139.86,139.84,0.05136066]
[1745233629046,7.1503,139.85,139.84,0.05136066]
[1745233645260,13.37767545,139.85,139.84,0.05136066]
[1745233648268,7.1503,139.85,139.84,0.05136066]
[1745233668286,7.1521,139.82,139.78,10.27437545]
[1745233669182,6.22737545,139.83,139.78,10.27437545]
[1745233669389,25.76,139.86,139.8,6.22737545]
[1745233669390,0.04948968,139.81,139.8,6.22737545]
[1745233669589,31.98737545,139.86,139.82,7.1518]
[1745233669789,7.1507,139.85,139.82,7.1518]
[1745233669990,7.20176777,139.85,139.83,0.04800844]
[1745233670893,7.20176777,139.85,139.83,7.19930844]
[1745233671187,0.05106777,139.85,139.83,7.19930844]
[1745233671392,0.05106777,139.85,139.83,0.04800844]
[1745233671690,0.05106777,139.85,139.84,7.1508]
[1745233672790,0.05106777,139.85,139.83,7.19920844]
[1745233676191,0.05106777,139.85,139.84,7.1508]
[1745233689895,32.8885,139.89,139.86,7.1494]
[1745233690396,32.8885,139.89,139.84,10.18937545]
[1745233690593,25.74,139.89,139.86,6.22737545]
[1745233690799,25.74,139.92,139.88,6.22737545]
[1745233690998,0.04798667,139.91,139.89,0.05264107]
[1745233691597,0.04798667,139.91,139.89,7.20064107]
[1745233693197,0.04798667,139.91,139.89,0.05264107]
[1745233693497,6.22737545,139.9,139.89,0.05264107]
[1745233693899,13.37517545,139.9,139.89,0.05264107]
[1745233698401,7.19548667,139.91,139.89,0.05264107]
[1745233699101,7.1478,139.9,139.89,0.05264107]
[1745233703705,7.19538667,139.91,139.89,0.05264107]
[1745233703908,0.04798667,139.91,139.89,0.05264107]
[1745233704408,0.04798667,139.91,139.89,7.20054107]
[1745233705907,0.04798667,139.91,139.9,7.1478]
[1745233708611,0.04798667,139.91,139.89,7.20064107]
[1745233709507,7.19528667,139.91,139.89,7.20064107]
[1745233709911,0.04798667,139.91,139.89,7.20064107]
[1745233717914,0.04798667,139.91,139.89,0.05264107]
[1745233719115,7.1478,139.9,139.89,0.05264107]
[1745233724119,6.22737545,139.9,139.86,13.37697545]
[1745233724414,7.1486,139.89,139.86,13.37697545]
[1745233725022,7.1486,139.89,139.86,13.43089868]
[1745233728624,13.37547545,139.9,139.87,7.1493]
[1745233728923,13.37547545,139.9,139.86,6.28129868]
[1745233728924,0.04798667,139.91,139.86,6.28129868]
[1745233729222,7.148,139.9,139.87,7.149]
[1745233729929,0.04798667,139.91,139.88,7.1488]
[1745233730122,0.04798667,139.91,139.86,6.28129868]
[1745233730825,7.1478,139.9,139.87,7.149]
[1745233731726,7.1478,139.9,139.88,7.1487]
[1745233731927,7.19548667,139.91,139.88,7.1487]
[1745233733428,7.19548667,139.91,139.89,7.1481]
[1745233733931,7.19548667,139.91,139.88,13.37587545]
[1745233734226,7.1478,139.9,139.88,13.37587545]
[1745233734527,7.1478,139.9,139.88,6.22737545]
[1745233736332,7.1478,139.9,139.88,13.37607545]
[1745233737030,0.04798667,139.91,139.88,13.37607545]
[1745233737534,0.04798667,139.91,139.88,7.1487]
[1745233738231,7.1478,139.9,139.88,7.1487]